Cogmind - Beta 14 *** ADVENTURER MODE // 2024.09.07 @ 07:48:40 Player: katharsis Result: Core destroyed Performance ------------- Evolutions (2) 1000 Regions Visited (3) 600 Robots Destroyed (30) 150 Value Destroyed (842) 842 Prototype IDs (1) 20 Alien Tech Used (0) 0 Bonus (0) 0 TOTAL SCORE: 2612 Bonus ------- None Cogmind --------- Core Integrity 0/550 Matter 244/300 Energy 233/250 System Corruption 0% Temperature Critical (521) Movement Core (400) Ox7 Location -8/Materials Parts ------- > --- POWER (2) -------- (None) > --- PROPULSION (2) --- (None) > --- UTILITY (4) ------ Large Storage Unit Medium Battery > --- WEAPON (3) ------- (None) > --- INVENTORY (15) --- Light Treads Wheel Compact Wheel Small Storage Unit Improved Terrain Scan Processor Melee Analysis Suite Core Shielding Peak State ------------ > --- POWER ------------ Light Nuclear Core Light Angular Momentum Engine > --- PROPULSION ------- Aluminum Leg Carbon-fiber Leg > --- UTILITY ---------- Large Storage Unit High-capacity Matter Pod Light Armor Plating Improved Light Armor Plating > --- WEAPON ----------- Heavy Assault Rifle Autogun Minigun > --- INVENTORY -------- Light Treads Wheel Wheel Compact Wheel Compact Wheel Small Storage Unit Medium Battery Improved Terrain Scan Processor Melee Analysis Suite Particle Gun Spread Laser Heavy Laser Enhanced Autogun [Rating: 27] Favorites ----------- Power Ion Engine Engine Ion Engine Power Core Light Nuclear Core Propulsion Improved Aluminum Leg Treads Light Treads Leg Improved Aluminum Leg Wheel Compact Wheel Utility Small Storage Unit Device Terrain Scanner Storage Small Storage Unit Processor Targeting Computer Protection Light Armor Plating Weapon Autogun Energy Gun Medium Laser Ballistic Gun Autogun Build | -11 -10 -9 -8 ------- Run | Yrd Mat Mat Mat Slots Evolved 4 | . . 2 2 Power 1 | . . 1 . Propulsion . | . . . . Utility 2 | . . 1 1 Weapon 1 | . . . 1 Parts Attached 48 | 6 5 11 26 Power 8 | 1 1 2 4 Engine 6 | 1 1 2 2 Core 2 | . . . 2 Reactor . | . . . . Propulsion 10 | 2 2 2 4 Treads 2 | 2 . . . Leg 6 | . 2 2 2 Wheel 2 | . . . 2 Hover . | . . . . Flight . | . . . . Utility 12 | 1 2 3 6 Device 2 | . 1 1 . Storage 4 | 1 . . 3 Processor 1 | . 1 . . Hackware . | . . . . Protection 5 | . . 2 3 Artifact . | . . . . Weapon 18 | 2 . 4 12 Energy Gun 6 | 1 . 1 4 Energy Cannon . | . . . . Ballistic Gun 12 | 1 . 3 8 Ballistic Cannon . | . . . . Launcher . | . . . . Special Weapon . | . . . . Impact Weapon . | . . . . Slashing Weapon . | . . . . Piercing Weapon . | . . . . Special Melee Weapon . | . . . . Unidentified Prototypes 1 | . . . 1 Parts Lost 16 | . . . 16 Power 3 | . . . 3 Propulsion 3 | . . . 3 Utility 3 | . . . 3 Weapon 7 | . . . 7 Highest Loss Streak 7 | . . . 7 To Critical Strikes . | . . . . Average Slot Usage (%) 89 | . 92 91 85 Engine 11 | . 14 14 8 Core 1 | . . . 4 Treads 7 | . 25 . . Leg 12 | . 2 22 13 Wheel 1 | . . . 3 Device 2 | . 3 3 . Storage 13 | . 14 11 15 Processor 6 | . 3 11 4 Protection 5 | . . 6 9 Energy Gun 9 | . 14 5 9 Ballistic Gun 15 | . 14 16 16 Peak Build Rating 27 | 6 7 12 27 Average Rating 12 | 4 6 11 19 On Entrance 6 | . 6 7 12 Naked Turns . | . . . . Heaviest Build 54 | 13 14 19 54 Greatest Support 40 | 40 40 26 26 Greatest Overweight (x) 7 | . . . 7 Average Overweight (x) . | . . . . Largest Inventory Capacity 15 | 8 8 8 15 Average Capacity 10 | 7 8 8 14 Most Carried 14 | 8 8 8 14 Average Carried 8 | 5 7 7 10 Final Capacity 15 | 8 8 8 15 Final Carried 8 | 6 7 8 7 Class Distribution -------------------- 78% | Mutant 10% | Gunner 8% | Scavenger-Tank 3% | Scavenger-Gunner Dominant Class ---------------- Mutant | -10/Materials Mutant | -9/Materials Mutant | -8/Materials Resources | -11 -10 -9 -8 ----------- Run | Yrd Mat Mat Mat Matter Collected 1079 | 173 92 435 379 Remotely . | . . . . Salvage Created 1001 | . 65 365 571 Parts 66 | . 6 25 35 Haulers Intercepted . | . . . . Recyclers Shooed 1 | . . 1 . Parts Field Recycled . | . . . . Retrieved Matter . | . . . . Parts Self-Destructed . | . . . . Prevented . | . . . . Kills | -11 -10 -9 -8 ------- Run | Yrd Mat Mat Mat Combat Hostiles Destroyed 26 | . 5 8 13 Guns 26 | . 5 8 13 Classes Destroyed 6 | . 1 4 1 Operator 1 | . . 1 . Watcher 3 | . . 2 1 Swarmer 11 | . 5 3 3 Grunt 8 | . . 2 6 Brawler 1 | . . . 1 Sentry 6 | . . 3 3 Best Kill Streak 6 | . 3 6 5 Combat Bots Only 5 | . 3 5 5 Max Kills in Single Turn 2 | . 2 1 2 Gunslinging 1 | . 1 . 1 Exploded . | . . . . Melee . | . . . . Uniques/NPCs Destroyed . | . . . . Combat | -11 -10 -9 -8 -------- Run | Yrd Mat Mat Mat Hostile Shots Fired 281 | . 33 39 209 Missed 69 | . 8 12 49 Damage Taken 2577 | . 151 248 2178 Core 616 | . 18 36 562 Absorbed by Shields . | . . . . Ignored by Resistances 682 | . 50 73 559 Regen/Repaired (Parts) 2 | . . 2 . Core Remaining (%) 94 | 100 92 91 . Volleys Fired 97 | . 17 26 54 Largest 3 | . 2 2 3 Hottest 134 | . 70 88 134 Shots Fired 186 | . 34 52 100 Gun 186 | . 34 52 100 Cannon . | . . . . Launcher . | . . . . Special . | . . . . Kinetic 115 | . 17 41 57 Thermal 71 | . 17 11 43 Explosive . | . . . . Electromagnetic . | . . . . Robot Hit Streak 22 | . 6 22 15 Robot Miss Streak 4 | . 4 1 3 Penetration Max . | . . . . Secondary Targets 6 | . 2 2 2 Max Gunslinging Chain 1 | . 1 1 1 Shots Hit Robots 137 | . 18 38 81 Core Hits 57 | . 7 15 35 Critical Kills . | . . . . Critical Parts Destroyed 1 | . . 1 . Critical Strikes 4 | . 2 1 1 Burn 3 | . 2 . 1 Destroy 1 | . . 1 . Melee Attacks . | . . . . Impact . | . . . . Slashing . | . . . . Piercing . | . . . . Sneak Attacks . | . . . . Combat Hostiles . | . . . . Follow-up Attacks . | . . . . Damage Inflicted 2061 | . 195 521 1345 Guns 2061 | . 195 521 1345 Cannons . | . . . . Explosions . | . . . . Melee . | . . . . Ramming . | . . . . Kinetic 1243 | . 83 421 739 Thermal 818 | . 112 100 606 Explosive . | . . . . Electromagnetic . | . . . . Impact . | . . . . Slashing . | . . . . Piercing . | . . . . Highest Corruption . | . . . . Average Corruption . | . . . . Corruption Purged . | . . . . Corruption Blocked . | . . . . Overload Shots . | . . . . Overflow Damage . | . . . . Projectiles . | . . . . Explosions . | . . . . Melee . | . . . . Knockbacks . | . . . . Impact . | . . . . Kinetic . | . . . . Secondary . | . . . . Self-Inflicted Damage . | . . . . Shots . | . . . . Rammed . | . . . . Targets Rammed . | . . . . Kicked . | . . . . Crushed . | . . . . Highest Temperature 648 | . 140 77 648 Average Temperature 196 | . 48 20 284 Received Heat Transfer 1368 | . . 117 1251 Effects 49 | . . . 49 Shutdowns 11 | . . . 11 Energy Bleed 4 | . . . 4 Interference 7 | . . . 7 Matter Decay 4 | . . . 4 Short Circuit 4 | . . . 4 Damage (minor) 4 | . . . 4 Damage (major) 12 | . . . 12 Damage (core) 3 | . . . 3 Siege Activations . | . . . . Robots Corrupted . | . . . . Combat Hostiles . | . . . . Parts Fried . | . . . . Impact Corruptions . | . . . . Robots Melted . | . . . . Combat Hostiles . | . . . . Parts Melted . | . . . . Heat Transferred 2089 | . 481 296 1312 Parts Sabotaged . | . . . . Parts Stolen . | . . . . Parts Stripped . | . . . . Power Chain Reactions . | . . . . Alert | -11 -10 -9 -8 ------- Run | Yrd Mat Mat Mat Peak Influence 349 | . 129 264 349 Initial 23 | . . . 23 Average 119 | . 48 116 188 Maximum Alert Level 1 | . . 1 1 Low Security (%) 76 | 100 100 68 63 Level 1 23 | . . 31 36 Level 2 . | . . . . Level 3 . | . . . . Level 4 . | . . . . Level 5 . | . . . . High Security . | . . . . Max Security . | . . . . Squads Dispatched . | . . . . Investigation . | . . . . Extermination . | . . . . Reinforcement . | . . . . Assault . | . . . . Garrison . | . . . . Intercept . | . . . . Searches Triggered . | . . . . Construction Impeded . | . . . . Haulers Reinforced . | . . . . Active Scanning Responses . | . . . . Cargo Convoy Interrupts . | . . . . Stealth | -11 -10 -9 -8 --------- Run | Yrd Mat Mat Mat Distress Signals 5 | . . 1 4 Communications Jammed . | . . . . Distress Signals . | . . . . Times Spotted 44 | . 7 10 27 Peak Tracking Total 9 | . 3 6 9 Tactical Retreats 6 | . . . 6 Traps | -11 -10 -9 -8 ------- Run | Yrd Mat Mat Mat Traps Triggered . | . . . . Indirectly . | . . . . Trap Hack Attempts . | . . . . Triggered . | . . . . Disarmed . | . . . . Reprogrammed . | . . . . Reused . | . . . . Traps Extracted . | . . . . Installed . | . . . . Triggered . | . . . . Machines | -11 -10 -9 -8 ---------- Run | Yrd Mat Mat Mat Machines Disabled . | . . . . Max in Single Turn . | . . . . Machines Repaired . | . . . . Machines Dismantled . | . . . . Machines Sabotaged . | . . . . Overloaded Fab Kills . | . . . . Hacking | -11 -10 -9 -8 --------- Run | Yrd Mat Mat Mat Machines Accessed 9 | . 3 4 2 Terminals 5 | . 2 2 1 Fabricators . | . . . . Repair Stations 1 | . . 1 . Recycling Units 1 | . 1 . . Scanalyzers 2 | . . 1 1 Garrison Access . | . . . . Total Hacks 29 | . 12 9 8 Successful 21 | . 8 7 6 Failed 8 | . 4 2 2 Catastrophic . | . . . . Database Lockouts . | . . . . Manual . | . . . . Terminals 15 | . 6 4 5 Fabricators . | . . . . Repair Stations 2 | . . 2 . Recycling Units 6 | . 6 . . Scanalyzers 6 | . . 3 3 Garrison Access . | . . . . Terminal Hacks 7 | . 2 2 3 Record 3 | . . . 3 Dispatch Records 1 | . 1 . . Assault Status 1 | . . 1 . Hauler Manifests 1 | . 1 . . Zone Layout 1 | . . 1 . Fabricator Hacks . | . . . . Repair Station Hacks 2 | . . 2 . Scan Component 1 | . . 1 . Repair 1 | . . 1 . Recycling Unit Hacks 6 | . 6 . . Recycle Component 3 | . 3 . . Process 1 | . 1 . . Retrieve Matter 1 | . 1 . . Retrieve Components 1 | . 1 . . Scanalyzer 6 | . . 3 3 Insert Component 4 | . . 2 2 Analyze 2 | . . 1 1 Garrison Access Hacks . | . . . . Unauthorized Hacks . | . . . . Terminals . | . . . . Fabricators . | . . . . Repair Stations . | . . . . Recycling Units . | . . . . Scanalyzers . | . . . . Garrison Access . | . . . . Data Cores Recovered 1 | . . 1 . Used . | . . . . Hacking Detections 6 | . 1 3 2 Full Trace Events 1 | . . 1 . Feedback Events . | . . . . Feedback Blocked . | . . . . Robot Schematics Acquired . | . . . . Robots Built . | . . . . Authchips . | . . . . Time . | . . . . Total Robot Build Rating . | . . . . Part Schematics Acquired 2 | . . 1 1 Parts Built . | . . . . Authchips . | . . . . Time . | . . . . Total Part Build Rating . | . . . . Parts Repaired 1 | . . 1 . Time 26 | . . 26 . Parts Recycled 3 | . 3 . . Recycled Matter 109 | . 109 . . Retrieved Matter 109 | . 109 . . Retrieved Components . | . . . . Parts Scanalyzed 2 | . . 1 1 Part Schematics Acquired 2 | . . 1 1 Parts Damaged . | . . . . Bothacking | -11 -10 -9 -8 ------------ Run | Yrd Mat Mat Mat Used RIF Installer . | . . . . Robots Hacked . | . . . . Non-combat . | . . . . Combat . | . . . . Robot Hacks Applied . | . . . . Relay Couplers Released . | . . . . Fabnet Peak Effective % . | . . . . Robots Rewired . | . . . . Allies Hacked . | . . . . Hacks Repelled . | . . . . Allies | -11 -10 -9 -8 -------- Run | Yrd Mat Mat Mat Total Allies . | . . . . Largest Group . | . . . . Highest-Rated Group . | . . . . Highest-Rated Ally . | . . . . Total Orders . | . . . . Ally Attacks . | . . . . Total Damage . | . . . . Kills . | . . . . Allies Corrupted . | . . . . Allies Melted . | . . . . Intel | -11 -10 -9 -8 ------- Run | Yrd Mat Mat Mat Robot Analysis Total . | . . . . Derelict Logs Recovered . | . . . . Drone Launches . | . . . . Drone Recoveries . | . . . . Exploration | -11 -10 -9 -8 ------------- Run | Yrd Mat Mat Mat Turns Passed 1737 | 77 484 519 657 Spaces Moved 962 | 48 270 354 290 Core 14 | 13 . . 1 Treads 275 | 35 240 . . Legs 580 | . 30 354 196 Wheels 93 | . . . 93 Hover . | . . . . Flight . | . . . . Fastest Speed 50 | 50 120 120 105 Average Speed 142 | 130 155 120 160 Slowest Speed 400 | 160 160 120 400 Overloaded Moves . | . . . . Propulsion Burnouts . | . . . . Robots Hopped . | . . . . Cave-ins Triggered . | . . . . Exploration Rate (%) 23 | 3 35 28 27 Regions Visited 3 Branch Regions . Pre-discovered Areas . | . . . . Known Exits Taken . | . . . . Unknown Exits Taken 3 | 1 1 1 . Scrap Searched . | . . . . Spaces Dug . | . . . . Terrain Destroyed . | . . . . Melee . | . . . . Projectile . | . . . . AOE . | . . . . Terrain Rammed . | . . . . Walls Destroyed . | . . . . Machines Disabled . | . . . . Actions | -11 -10 -9 -8 --------- Run | Yrd Mat Mat Mat Total 1175 | 61 303 406 405 Wait 6 | . . . 6 Move 959 | 47 269 353 290 Hop . | . . . . Pick Up 42 | 8 8 7 19 Fast Attach 7 | 4 1 2 . Attach 18 | 2 1 2 13 Detach . | . . . . Swap 23 | . 3 7 13 Drop 23 | . 4 9 10 Fire 97 | . 17 26 54 Melee . | . . . . Ram . | . . . . Kick . | . . . . Crush . | . . . . Escape Stasis . | . . . . Rewire . | . . . . Trap . | . . . . Miscellaneous . | . . . . Route ------- -11/Scrapyard -10/Materials -9/Materials -8/Materials History --------- Turn | Location | Event 14 | -11/Scrapyard | Discovered new exit (range 16) 78 | -11/Scrapyard | Entered Materials 304 | -10/Materials | Discovered new exit (range 16) 307 | -10/Materials | Build established: Mutant 562 | -10/Materials | Entered another Materials area 562 | -9/Materials | Evolved 2 slots: Power x1, Utility x1 736 | -9/Materials | Repaired Lgt. Ion Engine? 927 | -9/Materials | Discovered new exit (range 15) 1081 | -9/Materials | Entered another Materials area 1081 | -8/Materials | Evolved 2 slots: Utility x1, Weapon x1 1596 | -8/Materials | Core integrity fell below 50% 1629 | -8/Materials | Lost 7 parts (2p1n2u2w) 1736 | -8/Materials | Core integrity fell below 20% 1739 | -8/Materials | Core destroyed Last Messages --------------- 01728_ G-47 Trooper overheating. 01729_ Overheating: Med. Battery damaged (-9). 01729_ G-47 Trooper overheating. 01731_ Hvy. Laser destroyed. 01732_ Wheel destroyed. 01732_ Broken Particle Gun destroyed. 01733_ Power failure, Nuclear Core shutdown. 01733_ Overheating: Energy bleed (-86). 01733_ Nuclear Core destroyed. 01733_ Critical hit (Burn: +37). 01733_ G-47 Trooper overheating. 01734_ Overheating: Faulty Enh. Autogun damaged (-10). 01734_ G-47 Trooper overheating. 01735_ Faulty Enh. Autogun destroyed. 01736_ Overheating: Energy bleed (-30). 01737_ Overheating: Med. Battery damaged (-9). 01737_ Com. Wheel destroyed. 01737_ G-47 Trooper overheating. 01739_ Overheating: Core damaged (-71). Map ----- +----------------------------------------------------+ | ????????????????????????????? | | ????????????????????????????? | | ????????????????????????????? | | ????????????????????????????? | | ????????????????????????????? | | ????????????????????????????? | | ??????????????????????? ????? | | ??????????????????????? ????? | | ??????????????????????? ????? | | ??????????????????????? ????? | | ??????????????????????? ????? | | ??????????????????????? ????? | | ??????????????????????? ????? | | ??????????????????????# #???? | | ????????????????????### ###?? | | ??????????????????### #?? | | ??????????????????? ! ??? | | ???????????????????? =%* ??? | | ????????????????????? ![ ???? | | ?????????????????????? ???? | | ????????????????????###g####? | | ????????????????????# #? | | ????????????????????# ! #? | | ????????????????????# Y #? | | ?????????#+##########%g!! #? | | ?????????# /Y !!@ #? | | ?????????# ## ! #? | | ? ???????# #########? | | #### # * #?? | | + #?? | | # """ =#?? | | ####+## """ #?? | | ?? ?# #?""" #?? | | ??? ??# """ #? #?? | | ???? ???# """ #??#/##??? | | ??????###????# """ #??? #???? | | ?????????????# #????#???? | | ?????????????# #????????? | | ?????????????# #????????? | | ?????????????# #????????? | | ?????????????# "" #????????? | | ?????????????# """#????????? | | ?????????????# S"#????????? | | ############## #????????? | | ##/#######??????? | | #?????? | | +?????? | | #?????? | | #########+#?????? | | ####### #???????????????? | +----------------------------------------------------+ Best States ------------- Heat Dissipation 31 Energy Generation 27 Energy Capacity 415 Matter Stores 500 Matter Capacity 500 Sight Range 16 Terrain Scan Range 14 Terrain Scan Density 10 Armor Coverage 600 Resistance: KI 20 Resistance: TH 20 Resistance: EX 20 Resistance: EM 20 Resistance: I 20 Resistance: S 20 Resistance: P 20 Evasion (%) 55 Targeting Accuracy 5 Recoil Reduction 2 Offensive Hacking 10 Item Schematics ----------------- Aluminum Leg | -9/Materials | Scanalyzed Lrg. Storage Unit | -8/Materials | Scanalyzed Robot Schematics ------------------ None Fabricated ------------ Nothing Alien Tech Used ----------------- None Achievements -------------- None Challenges ------------ None Game ------ Seed TractorInsulationShield Manual? 0 Play Time 00:32:55 Cumulative 6.7 hours Start 2024.09.07 @ 07:15:57 End 2024.09.07 @ 07:48:40 Sessions 1 Manual Loads 0 Difficulty Adventurer Special Mode None Game No. 9 Rogue 0 Adventurer 9 Explorer 0 Win Type - Total 0 Types 0/0/0/0/0/0/0/0/0 Lore% 2 Gallery% 12 Achievement% 13 Wizard Run 0 Options --------- Layout 1 ASCII 0 Keyboard 0 Movement Mouse Keybinds 0 Fullscreen 2 Font 48/Smallcaps Map View 50x35 Zoom Use 0% Tactical HUD 1 Map Filters NONE Filters NONE Steam 1 RUN: 35d103ae-5d85-41ed-87d6-5ba6c4b71dc6